[Event "LTU-chT 2019"]
[Site "Lithuania"]
[Date "2019.04.28"]
[Round "7.11"]
[White "Idzeliene, Asta"]
[Black "Ceponyte, Barbora"]
[Result "1-0"]
[ECO "B12"]
[WhiteElo "1639"]
[BlackElo "1146"]
[Annotator "NA"]
[PlyCount "75"]
[EventDate "2019.01.26"]
[EventType "team-tourn"]
[EventCountry "LTU"]
[SourceTitle "playchess.com"]
[Source "ChessBase"]
[SourceQuality "1"]
[TimeControl "40/5400+30:1800+30"]

1. e4 {[%emt 0:00:00]} c6 {[%emt 0:00:00]} 2. d4 {[%emt 0:00:00]} d5 {[%emt 0:00:00]} 3. e5 {[%emt 0:00:32]} Bf5 {[%emt 0:00:00]} 4. f4 {[%emt 0:01:22]} e6 {[%emt 0:00:02]} 5. Nf3 {[%emt 0:02:37]} Nd7 {[%emt 0:01:47]} 6. Bd3 {[%emt 0:10:15]} Nh6 {[%emt 0:02:51]} 7. Bxf5 {[%emt 0:00:13]} Nxf5 {[%emt 0:00:06]} 8. g4 {[%emt 0:03:14]} Ne7 {[%emt 0:02:37]} 9. Qd3 {[%emt 0:04:37]} g6 {[%emt 0:07:31]} 10. Be3 {[%emt 0:03:31]} Bg7 {[%emt 0:00:19]} 11. Nbd2 {[%emt 0:02:43]} b6 {[%emt 0:02:48]} 12. Bf2 {[%emt 0:05:03]} Qc7 {[%emt 0:00:43]} 13. Bh4 {[%emt 0:06:03]} f6 {[%emt 0:02:52]} 14. a4 {[%emt 0:06:24]} O-O {[%emt 0:02:01]} 15. O-O {[%emt 0:02:22]} Rac8 {[%emt 0:01:50]} 16. Rae1 {[%emt 0:06:27]} Rfe8 {[%emt 0:06:06]} 17. h3 {[%emt 0:04:24]} c5 {[%emt 0:05:35]} 18. c3 {[%emt 0:11:47]} f5 {[%emt 0:13:11]} 19. Bf2 {[%emt 0:06:53]} Rf8 {[%emt 0:01:49]} 20. Ng5 {[%emt 0:03:21]} Qc6 {[%emt 0:04:07]} 21. Bh4 {[%emt 0:01:56]} Rfe8 {[%emt 0:01:41]} 22. Bf2 {[%emt 0:02:10]} h6 {[%emt 0:00:13]} 23. Ngf3 {[%emt 0:01:30]} Qxa4 {[%emt 0:00:16]} 24. Ra1 {[%emt 0:00:47]} Qc6 {[%emt 0:00:09]} 25. Rxa7 {[%emt 0:00:42]} Ra8 {[%emt 0:00:22]} 26. Rfa1 {[%emt 0:01:01]} c4 {[%emt 0:01:51]} 27. Qb1 {[%emt 0:01:48]} b5 {[%emt 0:00:57]} 28. R1a6 {[%emt 0:03:01]} Nb6 {[%emt 0:01:41]} 29. Qa2 {[%emt 0:01:28]} Bf8 {[%emt 0:01:40]} 30. Rxb6 {[%emt 0:02:28]} Qxb6 {[%emt 0:00:10]} 31. Rxa8 {[%emt 0:02:17]} Rxa8 {[%emt 0:00:06]} 32. Qxa8 {[%emt 0:01:07]} b4 {[%emt 0:00:41]} 33. Bh4 {[%emt 0:01:02]} Kf7 {[%emt 0:03:35]} 34. Bxe7 {[%emt 0:00:16]} Bxe7 {[%emt 0:05:14]} 35. Qa2 {[%emt 0:02:23]} b3 {[%emt 0:00:56]} 36. Qa8 {[%emt 0:00:45]} Bf8 {[%emt 0:00:24]} 37. Kg2 {[%emt 0:01:12]} Qc7 {[%emt 0:01:23]} 38. Nb1 {[%emt 0:00:00]} 1-0